Cogmind - Beta 15 @@@ ROGUE MODE // 2025.06.18 @ 21:25:06 Player: BlobtheGreat Result: Destroyed by P-70 Sage with High-powered Shock Rifle Performance ------------- Evolutions (6) 3000 Regions Visited (15) 3000 Robots Destroyed (230) 1150 Value Destroyed (8464) 8464 Prototype IDs (32) 640 Alien Tech Used (0) 0 Bonus (4426) 4426 TOTAL SCORE: 20680 Bonus ------- High Alert Combat Kills 219 Follower Combat Kills 907 Entered Garrisons 1000 Used RIF Installer 2000 Aligned with FarCom 300 Cogmind --------- Core Integrity 0/1150 Matter 187/300 Energy 92/100 System Corruption 46% Temperature Cool (0) Movement Core (50) Location -4/Garrison Parts ------- > --- POWER (2) -------- (None) > --- PROPULSION (5) --- (None) > --- UTILITY (9) ------ Relay Coupler [NC] (16) Relay Coupler [Cutter] (25) Relay Coupler [Sentry] (26) > --- WEAPON (3) ------- (None) > --- INVENTORY (5) ---- Fission Core Improved Cooling System Relay Coupler [Proto] (9) Lance Lance Peak State ------------ > --- POWER ------------ Reinforced Deuterium Engine Quantum Reactor > --- PROPULSION ------- Carbon-fiber Leg Carbon-fiber Leg Carbon-fiber Leg Heavy Shield Leg > --- UTILITY ---------- High-capacity Storage Unit Target Analyzer Relay Coupler [NC] Relay Coupler [Cutter] Relay Coupler [Grunt] Relay Coupler [Grunt] Relay Coupler [Sentry] Relay Coupler [Hunter] Relay Coupler [Hunter] > --- WEAPON ----------- Heavy Beamcaster Gauss Rifle Improved Remote Datajack > --- INVENTORY -------- Fission Core Flexi-carbon Leg Improved Cooling System Layered Medium Armor Plating System Shield Relay Coupler [NC] Relay Coupler [Swarmer] Relay Coupler [Grunt] Relay Coupler [Brawler] Relay Coupler [Demolisher] Relay Coupler [Proto] Relay Coupler [Proto] Relay Coupler [Proto] Relay Coupler [Proto] Heavy Laser HERF Cannon Coil Gun Advanced Datajack Lance Lance [Rating: 94] Favorites ----------- Power Light Nuclear Core Engine Angular Momentum Engine Power Core Light Nuclear Core Reactor Quantum Reactor Propulsion Light Treads Treads Light Treads Leg Carbon-fiber Leg Wheel Armored Wheel Hover Unit Cooled Airjet Flight Unit Flight Unit Utility High-capacity Storage Unit Device Improved Cooling System Storage High-capacity Storage Unit Processor Target Analyzer Hackware Hacking Suite Protection Improved Medium Armor Plating Weapon Gauss Rifle Energy Gun Medium Laser Energy Cannon Beam Cannon Ballistic Gun Gauss Rifle Ballistic Cannon Gauss Cannon Launcher Rocket Array Special Weapon Remote Datajack Impact Weapon Hammer Slashing Weapon Chainsword Piercing Weapon Spear Special Melee Weapon Improved Datajack Build | -11 -10 -10 -10 -9 -8 -8 -7 -7 -7 -6 -6 -5 -5 -4 -4 ------- Run | Yrd Mat Min Exi Min Mat Gar Fac Gar Fac Fac Gar Fac Gar Fac Gar Slots Evolved 12 | . . . . . 4 . 2 . . 2 . 2 . 2 . Power 1 | . . . . . . . . . . . . 1 . . . Propulsion 3 | . . . . . 2 . . . . . . 1 . . . Utility 7 | . . . . . 2 . 2 . . 2 . . . 1 . Weapon 1 | . . . . . . . . . . . . . . 1 . Parts Attached 196 | 7 8 . . 8 25 14 6 9 24 23 5 9 43 8 7 Power 26 | 1 1 . . 1 2 3 . 2 5 2 . 2 7 . . Engine 11 | 1 . . . 1 . . . . 3 1 . . 5 . . Core 14 | . 1 . . . 2 3 . 2 2 1 . 2 1 . . Reactor 1 | . . . . . . . . . . . . . 1 . . Propulsion 51 | 2 1 . . 3 10 6 1 2 10 3 1 2 10 . . Treads 11 | 2 1 . . . 1 5 . . . . . . 2 . . Leg 14 | . . . . . . 1 . . 6 . . . 7 . . Wheel 16 | . . . . 2 8 . . . 4 2 . . . . . Hover 9 | . . . . . 1 . 1 2 . 1 1 2 1 . . Flight 1 | . . . . 1 . . . . . . . . . . . Utility 64 | 2 3 . . . 7 2 3 3 5 10 3 2 18 5 1 Device 21 | 1 . . . . 4 . 1 1 2 4 3 . 4 1 . Storage 3 | 1 1 . . . . . . . . . . 1 . . . Processor 1 | . . . . . . . . . . 1 . . . . . Hackware 23 | . . . . . 1 . 1 2 1 2 . 1 11 3 1 Protection 16 | . 2 . . . 2 2 1 . 2 3 . . 3 1 . Artifact . | . . . . . . . . . . . . . . . . Weapon 55 | 2 3 . . 4 6 3 2 2 4 8 1 3 8 3 6 Energy Gun 9 | 1 1 . . 1 3 . . . . . . . 3 . . Energy Cannon 7 | . 1 . . . . . . . 1 1 . . 2 1 1 Ballistic Gun 16 | 1 . . . . 1 3 . 1 3 2 . 1 3 1 . Ballistic Cannon 4 | . . . . 1 1 . . . . 2 . . . . . Launcher 8 | . 1 . . 1 . . 1 . . 2 . . . . 3 Special Weapon 3 | . . . . . . . . . . 1 . 1 . 1 . Impact Weapon 1 | . . . . 1 . . . . . . . . . . . Slashing Weapon 4 | . . . . . . . 1 . . . 1 . . . 2 Piercing Weapon 2 | . . . . . 1 . . . . . . 1 . . . Special Melee Weapon 1 | . . . . . . . . 1 . . . . . . . Unidentified Prototypes 7 | . . . . . 2 . 2 . 1 1 . . . . 1 Corrupted Parts 4 | . . . . . . . . . . . . . . . 4 System Corruption 36 | . . . . . . . . . . . . . . . 36 Parts Lost 93 | . 4 . . 2 3 5 . 5 9 14 4 7 20 1 19 Power 18 | . 1 . . 1 . 1 . 1 4 1 . 2 4 . 3 Propulsion 26 | . 1 . . 1 2 2 . 2 2 4 1 1 7 1 2 Utility 29 | . 1 . . . 1 1 . 2 . 6 2 2 5 . 9 Weapon 20 | . 1 . . . . 1 . . 3 3 1 2 4 . 5 Highest Loss Streak 19 | . 2 . . 1 1 2 . 2 4 10 2 6 5 1 19 To Critical Strikes . | . . . . . . . . . . . . . . . . Average Backups 18 | 3 9 20 20 19 19 19 19 18 19 17 19 19 19 19 17 Power 1 | . 1 2 2 1 1 1 1 1 . 1 3 1 1 1 1 Propulsion 3 | 2 . . . . 3 3 4 4 6 6 5 3 1 1 . Utility 6 | . 4 7 7 7 6 6 5 5 6 3 5 6 7 11 10 Weapon 5 | . 3 11 10 10 7 5 6 5 4 3 3 6 7 4 4 Tool/Special . | . . . . . . . . . . . . . . . . Unused Backups 77 | . 7 1 . 4 14 2 4 . 8 10 2 1 9 3 12 Power 9 | . . . . 1 . 1 . . 2 2 . . 1 1 1 Propulsion 14 | . 4 . . . . 1 . . 2 5 . . 1 . 1 Utility 27 | . 2 . . 2 6 . 2 . 3 1 1 . 2 . 8 Weapon 22 | . . 1 . 1 8 . 2 . 1 1 . . 5 1 2 Tool/Special 5 | . 1 . . . . . . . . 1 1 1 . 1 . Average Slot Usage (%) 94 | . 99 100 100 95 96 99 93 90 98 88 91 88 94 93 63 Engine 3 | . 2 . . 13 1 . . . 3 2 5 2 6 5 2 Core 5 | . 11 14 14 . 7 9 7 6 3 3 . 6 2 . . Treads 8 | . 27 28 28 13 9 12 15 11 1 . . . 1 . . Leg 4 | . . . . . . 1 . . 21 . . . 9 20 7 Wheel 7 | . . . . 10 24 22 15 12 4 12 . . . . . Hover 5 | . . . . . . . . . 1 9 19 22 14 . . Device 7 | . 1 . . . 8 9 14 16 16 7 6 7 5 . . Storage 8 | . 14 14 14 14 9 9 7 7 7 6 6 5 5 5 4 Processor 1 | . . . . . . . . . . 1 6 5 5 4 . Hackware 13 | . . . . . 6 4 6 11 15 21 20 20 23 34 35 Protection 8 | . 11 14 14 14 11 13 9 5 5 7 11 2 2 1 . Energy Gun 4 | . 20 14 14 20 4 . . . . . . . 2 5 2 Energy Cannon 2 | . 3 14 14 2 . . . . 1 1 3 2 . 1 2 Ballistic Gun 5 | . 2 . . . 4 15 6 4 9 6 2 2 6 6 . Ballistic Cannon 1 | . . . . . 8 1 . 5 . 3 5 2 . . . Peak Build Rating 94 | 7 12 12 13 15 36 38 43 43 51 62 67 75 84 94 92 Average Rating 43 | 4 9 12 12 12 31 35 40 39 46 53 61 69 70 92 58 On Entrance 38 | . 7 12 12 13 15 36 36 42 43 41 62 64 65 84 90 Naked Turns . | . . . . . . . . . . . . . . . . Heaviest Build 97 | 15 51 51 51 55 67 69 78 81 66 78 75 83 85 97 95 Greatest Support 105 | 40 40 40 40 40 48 43 43 28 73 48 36 52 105 105 90 Greatest Overweight (x) 16 | . 2 1 1 12 5 3 3 3 5 2 2 1 4 1 16 Average Overweight (x) 1 | . . 1 1 3 1 1 1 2 . 1 1 1 . . 3 Largest Inventory Capacity 20 | 8 20 20 20 20 20 20 20 20 20 20 20 20 20 20 20 Average Capacity 19 | 6 15 20 20 20 20 20 20 20 20 20 20 20 20 20 18 Most Carried 20 | 7 20 20 20 20 20 20 20 20 20 20 20 20 20 20 20 Average Carried 18 | 4 9 19 19 19 19 19 19 18 19 18 19 19 19 19 17 Final Capacity 20 | 8 20 20 20 20 20 20 20 20 20 20 20 20 20 20 5 Final Carried 20 | 7 20 20 20 20 20 20 20 19 20 20 20 20 20 20 5 Class Distribution -------------------- 39% | Mutant 34% | Bothacker-Mutant 8% | Botlord-Mutant 8% | Scavenger-Mutant 4% | Botlord-Skirmisher 4% | Hacker-Mutant Dominant Class ---------------- Mutant | -10/Materials Mutant | -10/Mines Mutant | -10/Exiles Mutant | -9/Mines Scavenger-Mutant | -8/Materials Mutant | -8/Garrison Mutant | -7/Factory Mutant | -7/Garrison Bothacker-Mutant | -7/Factory Bothacker-Mutant | -6/Factory Bothacker-Mutant | -6/Garrison Bothacker-Mutant | -5/Factory Botlord-Mutant | -5/Garrison Botlord-Skirmisher | -4/Factory Mutant | -4/Garrison Resources | -11 -10 -10 -10 -9 -8 -8 -7 -7 -7 -6 -6 -5 -5 -4 -4 ----------- Run | Yrd Mat Min Exi Min Mat Gar Fac Gar Fac Fac Gar Fac Gar Fac Gar Matter Collected 6900 | 291 242 . . 205 898 615 80 356 1121 889 500 280 1295 93 35 Remotely . | . . . . . . . . . . . . . . . . Salvage Created 7602 | 103 727 . . 204 973 700 262 561 1391 975 555 190 736 120 105 Parts 427 | 7 54 . . 25 62 42 14 20 66 53 26 9 29 8 12 Haulers Intercepted 8 | . 2 . . . 4 . . . 1 1 . . . . . Recyclers Shooed 12 | 1 1 . . . 4 . . . 2 3 . 1 . . . Parts Field Recycled . | . . . . . . . . . . . . . . . . Retrieved Matter . | . . . . . . . . . . . . . . . . Parts Self-Destructed . | . . . . . . . . . . . . . . . . Prevented . | . . . . . . . . . . . . . . . . Kills | -11 -10 -10 -10 -9 -8 -8 -7 -7 -7 -6 -6 -5 -5 -4 -4 ------- Run | Yrd Mat Min Exi Min Mat Gar Fac Gar Fac Fac Gar Fac Gar Fac Gar Combat Hostiles Destroyed 163 | . 23 . . 8 19 15 2 15 18 20 20 . 18 2 3 Melee 5 | . . . . . . . 2 . . 3 . . . . . Guns 76 | . 16 . . . 6 12 . 4 11 6 3 . 17 . 1 Cannons 38 | . 1 . . 1 11 3 . 6 2 5 6 . 1 2 . AOE 42 | . 6 . . 7 2 . . 5 3 6 11 . . . 2 Classes Destroyed 17 | 2 6 . . 1 2 2 1 1 . . 1 . 1 . . Worker 14 | . 1 . . 3 2 . . . 3 2 . 3 . . . Builder 9 | . . . . 2 4 . . . 1 1 . 1 . . . Tunneler 8 | 1 . . . 4 . . . . . 3 . . . . . Hauler 8 | . 2 . . . 4 . . . 1 1 . . . . . Recycler 17 | 1 . . . . 4 . 2 . 8 1 . 1 . . . Operator 5 | . 2 . . . 1 . . . 1 1 . . . . . Watcher 4 | . 2 . . . . . . . . . . 1 1 . . Swarmer 56 | . 12 . . 7 7 . . 3 6 6 9 . 6 . . Cutter 5 | . . . . . . . . . . . 2 . . . 3 Grunt 59 | . 11 . . 1 8 7 . 8 5 5 6 1 7 . . Brawler 3 | . . . . . . . . 3 . . . . . . . Duelist 5 | . . . . . . 3 . 1 1 . . . . . . Protector 1 | . . . . . . . 1 . . . . . . . . Sentry 10 | . . . . . 2 3 . . 3 . . . 2 . . Hunter 9 | . . . . . 2 2 . . 1 2 2 . . . . Programmer 16 | . . . . . . 1 1 . 2 7 1 . 2 2 . Behemoth 1 | . . . . . . . . . . . . . 1 . . Best Kill Streak 12 | 2 4 . . 7 5 3 1 5 4 5 12 3 4 1 3 Combat Bots Only 12 | . 3 . . 4 3 3 1 5 3 5 12 . 4 1 3 Max Kills in Single Turn 5 | 1 3 . . 5 3 1 1 3 3 3 3 3 1 1 2 Gunslinging . | . . . . . . . . . . . . . . . . Exploded 3 | . 3 . . 3 2 . . 3 3 2 3 . . . 1 Melee 1 | . . . . . . . 1 . . 1 . . . . . Uniques/NPCs Destroyed . | . . . . . . . . . . . . . . . . Combat | -11 -10 -10 -10 -9 -8 -8 -7 -7 -7 -6 -6 -5 -5 -4 -4 -------- Run | Yrd Mat Min Exi Min Mat Gar Fac Gar Fac Fac Gar Fac Gar Fac Gar Hostile Shots Fired 1358 | . 104 . . 17 102 113 26 74 236 190 88 49 183 12 164 Missed 382 | . 29 . . 6 24 30 9 17 77 64 25 16 48 3 34 Hits 976 | . 75 . . 11 78 83 17 57 159 126 63 33 135 9 130 Melee 41 | . . . . 2 . 7 . 2 5 . 5 . . . 20 Projectile 935 | . 75 . . 9 78 76 17 55 154 126 58 33 135 9 110 AOE 3 | . . . . . . . 1 . . 1 1 . . . . Critical Strikes 46 | . 1 . . . 3 7 . 4 2 5 4 3 4 1 12 Actively Blocked 1 | . 1 . . . . . . . . . . . . . . Part Disruptions 5 | . . . . . . . . . 3 1 . . . . 1 Damage Taken 16435 | . 804 . . 209 996 1384 409 1005 2110 2155 1002 695 2570 291 2805 Core 3164 | . 170 . . 21 107 164 12 64 403 440 173 142 306 . 1162 Absorbed by Shields 203 | . . . . . . . . 35 . . 55 . 113 . . Redirected to Shielding 190 | . 66 . . 30 26 . . . 68 . . . . . . Core Remaining (%) 47 | 100 . . . 23 . 50 . . 31 . 27 . 55 . . Volleys Fired 661 | 7 82 . . 15 109 60 . 38 80 62 50 21 110 13 14 Largest 3 | 2 2 . . 2 2 2 . 2 2 2 2 2 2 3 2 Hottest 197 | 70 110 . . 115 106 60 . 68 108 80 115 115 126 197 169 Shots Fired 1157 | 11 157 . . 19 177 119 . 73 152 106 81 28 193 23 18 Gun 781 | 11 148 . . 6 97 102 . 34 112 62 14 11 168 12 4 Cannon 299 | . 5 . . 3 78 17 . 35 39 34 57 11 13 5 2 Launcher 42 | . 4 . . 10 2 . . 4 1 8 7 2 . . 4 Special 35 | . . . . . . . . . . 2 3 4 12 6 8 Kinetic 753 | 7 34 . . . 115 119 . 69 112 92 47 18 135 5 . Thermal 286 | 4 119 . . 9 60 . . . 39 1 . . 43 7 4 Explosive 39 | . 4 . . 10 2 . . 4 1 8 7 2 . . 1 Electromagnetic 44 | . . . . . . . . . . 3 24 4 3 5 5 Robot Hit Streak 20 | 8 10 . . 4 12 19 . 20 12 6 5 7 19 6 6 Robot Miss Streak 9 | 1 5 . . 1 9 5 . 2 6 3 4 6 7 3 2 Penetration Max 1 | . . . . . 1 1 . 1 1 . 1 . . . . Secondary Targets 6 | . 3 . . . . 1 . . . . . . 2 . . Max Gunslinging Chain 1 | . 1 . . . . 1 . . . . . . 1 . . Shots Hit Robots 768 | 9 92 . . 9 103 94 7 52 120 69 40 24 120 15 14 Core Hits 493 | 3 44 . . 20 69 43 3 29 91 40 34 28 79 4 6 Critical Kills 8 | . . . . . 3 1 . . 2 1 1 . . . . Critical Parts Destroyed 11 | . . . . . . . . 2 2 . 2 . 5 . . Critical Strikes 45 | . 6 . . . 9 1 . 3 4 6 6 2 6 2 . Burn 10 | . 6 . . . 2 . . . . . . . 1 1 . Meltdown 2 | . . . . . . . . . 2 . . . . . . Destroy 17 | . . . . . 3 1 . 2 2 1 3 . 5 . . Blast 11 | . . . . . 3 . . 1 . 4 2 1 . . . Corrupt 3 | . . . . . . . . . . . 1 1 . 1 . Sever 1 | . . . . . . . . . . 1 . . . . . Impale 1 | . . . . . 1 . . . . . . . . . . Melee Attacks 80 | . . . . 2 8 7 9 5 14 18 12 1 . . 4 Impact 2 | . . . . 2 . . . . . . . . . . . Slashing 56 | . . . . . . . 5 3 14 18 12 . . . 4 Piercing 20 | . . . . . 8 7 4 . . . . 1 . . . Sneak Attacks 17 | . . . . 2 2 1 3 1 4 4 . . . . . Combat Hostiles . | . . . . . . . . . . . . . . . . Follow-up Attacks . | . . . . . . . . . . . . . . . . Damage Inflicted 21237 | 117 1497 . . 964 2699 1682 306 1586 2949 3208 1900 1028 2517 190 594 Guns 9667 | 117 1145 . . 52 1032 1308 . 586 1572 920 217 214 2255 160 89 Cannons 4655 | . 36 . . 52 1163 310 . 596 597 627 735 214 262 30 33 Explosions 4716 | . 303 . . 739 174 . . 404 182 943 948 596 . . 427 Melee 2145 | . . . . 121 330 64 306 . 598 687 . . . . 39 Ramming 54 | . 13 . . . . . . . . 31 . 4 . . 6 Kinetic 10792 | 67 247 . . . 1556 1618 . 1182 1572 1547 632 403 1914 54 . Thermal 3083 | 50 934 . . 104 639 . . . 597 . . . 529 106 124 Explosive 4343 | . 303 . . 739 134 . . 404 182 943 948 596 . . 94 Electromagnetic 820 | . . . . . 40 . . . . . 320 25 74 30 331 Impact 121 | . . . . 121 . . . . . . . . . . . Slashing 1461 | . . . . . . . 137 . 598 687 . . . . 39 Piercing 563 | . . . . . 330 64 169 . . . . . . . . Highest Corruption 45 | . . . . . . . 1 1 7 11 11 5 8 . 45 Average Corruption 5 | . . . . . . . 1 1 3 6 11 4 5 . 29 Corruption Purged . | . . . . . . . . . . . . . . . . Corruption Blocked . | . . . . . . . . . . . . . . . . Effects 242 | . . . . . . . 3 6 47 60 46 10 63 . 7 Message Errors 54 | . . . . . . . 2 1 10 14 13 4 10 . . Matter Fused 59 | . . . . . . . . . 17 13 11 3 14 . 1 Heat Flow Errors 29 | . . . . . . . . 2 5 10 4 1 7 . . Energy Discharges 31 | . . . . . . . 1 1 4 9 3 1 10 . 2 Parts Rejected 3 | . . . . . . . . . . 2 . . 1 . . Parts Fused 4 | . . . . . . . . . 1 . 1 1 1 . . Data Loss (minor) 27 | . . . . . . . . 1 5 4 10 . 5 . 2 Data Loss (major) 8 | . . . . . . . . . 3 3 . . 2 . . Misfires 12 | . . . . . . . . 1 1 3 1 . 6 . . Alerts 2 | . . . . . . . . . . . . . 2 . . Misdirections 2 | . . . . . . . . . . . . . . . 2 Weapon Failures 11 | . . . . . . . . . 1 2 3 . 5 . . Overload Shots . | . . . . . . . . . . . . . . . . Overflow Damage 775 | . . . . 116 143 . 25 28 139 227 77 4 9 . 7 Projectiles 122 | . . . . . 36 . . 28 . 34 15 . 9 . . Explosions 224 | . . . . 37 41 . . . . 73 62 4 . . 7 Melee 429 | . . . . 79 66 . 25 . 139 120 . . . . . Knockbacks 49 | . . . . . 19 9 . 8 . 5 4 3 1 . . Impact . | . . . . . . . . . . . . . . . . Kinetic 46 | . . . . . 17 9 . 8 . 5 4 2 1 . . Secondary 3 | . . . . . 2 . . . . . . 1 . . . Self-Inflicted Damage 518 | . . . . 46 49 . . 140 39 41 35 39 . . 129 Shots 18 | . . . . 1 1 . . 7 2 1 1 1 . . 4 Rammed 5 | . 2 . . . . . . . . 1 . 1 . . 1 Targets Rammed 6 | . 3 . . . . . . . . 1 . 1 . . 1 Kicked . | . . . . . . . . . . . . . . . . Crushed 1 | . 1 . . . . . . . . . . . . . . Highest Temperature 389 | 18 316 . . 154 383 . . 211 307 276 389 154 376 378 247 Average Temperature 83 | 10 71 . . 67 150 . . 55 95 74 107 79 103 140 113 Received Heat Transfer 3442 | . 315 . . 27 252 396 42 534 309 303 138 66 671 . 389 Effects 4 | . . . . . 1 . . . . . 1 . 2 . . Shutdowns 2 | . . . . . 1 . . . . . 1 . . . . Interference 2 | . . . . . . . . . . . . . 2 . . Siege Activations . | . . . . . . . . . . . . . . . . Martial Activations . | . . . . . . . . . . . . . . . . Shielding Activations . | . . . . . . . . . . . . . . . . Robots Disrupted . | . . . . . . . . . . . . . . . . Combat Hostiles . | . . . . . . . . . . . . . . . . Robots Corrupted 2 | . . . . 2 . . . . . . . . . . . Combat Hostiles . | . . . . . . . . . . . . . . . . Parts Fried 9 | . . . . 4 1 . . . . . 1 . . . 3 Impact Corruptions 6 | . . . . 4 . . . . . 1 . . . . 1 Robots Melted 2 | . . . . . . . . . 2 . . . . . . Combat Hostiles 2 | . . . . . . . . . 2 . . . . . . Parts Melted 9 | . 5 . . 1 2 . . . . . . . . 1 . Heat Transferred 7529 | 148 3108 . . 259 1406 . . . 1150 . . . 1057 222 179 Parts Sabotaged . | . . . . . . . . . . . . . . . . Parts Stolen . | . . . . . . . . . . . . . . . . Parts Stripped . | . . . . . . . . . . . . . . . . Power Chain Reactions 1 | . . . . . . . . . . . . . . . 1 Alert | -11 -10 -10 -10 -9 -8 -8 -7 -7 -7 -6 -6 -5 -5 -4 -4 ------- Run | Yrd Mat Min Exi Min Mat Gar Fac Gar Fac Fac Gar Fac Gar Fac Gar Maximum Alert Level 4 | . . . . . 1 2 1 2 1 . 2 1 4 2 1 Low Security (%) 68 | 100 100 100 . 100 98 24 88 40 95 100 35 60 11 . 78 Level 1 17 | . . . . . 1 71 11 57 4 . 1 39 33 50 21 Level 2 8 | . . . . . . 3 . 2 . . 63 . 17 49 . Level 3 4 | . . . . . . . . . . . . . 32 . . Level 4 . | . . . . . . . . . . . . . 4 . . Level 5 . | . . . . . . . . . . . . . . . . High Security . | . . . . . . . . . . . . . . . . Max Security . | . . . . . . . . . . . . . . . . Peak Influence 1155 | 5 138 10 . 148 225 489 256 497 260 185 573 300 1155 606 288 Initial 606 | . . 10 . . 44 . 256 . 260 104 112 300 55 606 198 Average 188 | . 53 . . 54 73 270 64 210 67 94 354 184 558 416 186 Influence Increases 6946 | 10 637 . . 460 835 539 111 567 591 764 561 151 1500 128 92 Destroy 0b10 Robot/C 3780 | . 460 . . 260 440 300 40 300 360 420 400 40 640 60 60 Destroy 0b10 Robot/NC 330 | 10 35 . . 45 75 . 15 . 70 45 . 30 5 . . Destroy Leader 632 | . 108 . . 40 138 20 20 20 102 112 20 12 20 20 . Allied During Kill 155 | . . . . 43 12 . 2 . . 4 . 7 80 7 . Successful Hack 178 | . 9 . . . 25 14 32 . 22 . 24 . 28 24 . Disable Machine 90 | . . . . . 90 . . . . . . . . . . Anti-Garrison Action 1050 | . . . . . . 150 . 200 . . 50 . 650 . . Destroy Structure 446 | . 10 . . 72 40 25 2 47 22 78 67 32 17 2 32 Partial Spotted 30 | . . . . . 15 . . . . . . 15 . . . Lose Combat Pursuer 255 | . 15 . . . . 30 . . 15 105 . 15 60 15 . Influence Decreases 6886 | 10 610 27 . 344 951 50 600 70 875 816 149 645 424 999 316 Entered New Map 1649 | . . 17 . . 72 . 233 . 237 109 49 273 24 549 86 Time Decay 3351 | 10 574 10 . 304 529 . 327 . 408 547 . 262 . 380 . Lost Part 896 | . 36 . . 20 30 50 . 50 80 120 40 70 200 10 190 Lost Ally 540 | . . . . 20 20 . 40 20 . 40 60 40 200 60 40 Purge Threat 450 | . . . . . 300 . . . 150 . . . . . . Squads Dispatched 44 | . 5 . . 1 10 . 2 . 7 11 . 3 . 5 . Investigation 4 | . 3 . . 1 . . . . . . . . . . . Extermination 15 | . . . . . . . 2 . 3 7 . 2 . 1 . Reinforcement 11 | . 2 . . . 2 . . . 1 4 . 1 . 1 . Assault . | . . . . . . . . . . . . . . . . Garrison 14 | . . . . . 8 . . . 3 . . . . 3 . Intercept . | . . . . . . . . . . . . . . . . Searches Triggered . | . . . . . . . . . . . . . . . . Construction Impeded 3 | . . . . . 1 . . . . 2 . . . . . Haulers Reinforced 1 | . . . . . . . . . . 1 . . . . . Active Scanning Responses . | . . . . . . . . . . . . . . . . Cargo Convoy Interrupts . | . . . . . . . . . . . . . . . . Stealth | -11 -10 -10 -10 -9 -8 -8 -7 -7 -7 -6 -6 -5 -5 -4 -4 --------- Run | Yrd Mat Min Exi Min Mat Gar Fac Gar Fac Fac Gar Fac Gar Fac Gar Distress Signals 7 | . 1 . . 1 3 . 2 . . . . . . . . Communications Jammed . | . . . . . . . . . . . . . . . . Distress Signals . | . . . . . . . . . . . . . . . . Times Spotted 269 | . 36 . . 8 37 17 6 16 26 38 19 10 41 5 10 Peak Tracking Total 7 | . 5 . . 4 5 6 3 4 5 6 7 6 6 2 6 Tactical Retreats 12 | . 1 . . . . 1 . . 1 4 . 1 3 1 . Traps | -11 -10 -10 -10 -9 -8 -8 -7 -7 -7 -6 -6 -5 -5 -4 -4 ------- Run | Yrd Mat Min Exi Min Mat Gar Fac Gar Fac Fac Gar Fac Gar Fac Gar Traps Triggered 29 | . 2 . . . . 3 1 2 2 2 6 . 9 . 2 Indirectly 1 | . . . . . . . . . . . . . . . 1 Trap Hack Attempts . | . . . . . . . . . . . . . . . . Triggered . | . . . . . . . . . . . . . . . . Disarmed . | . . . . . . . . . . . . . . . . Reprogrammed . | . . . . . . . . . . . . . . . . Reused . | . . . . . . . . . . . . . . . . Traps Extracted . | . . . . . . . . . . . . . . . . Installed . | . . . . . . . . . . . . . . . . Triggered . | . . . . . . . . . . . . . . . . Machines | -11 -10 -10 -10 -9 -8 -8 -7 -7 -7 -6 -6 -5 -5 -4 -4 ---------- Run | Yrd Mat Min Exi Min Mat Gar Fac Gar Fac Fac Gar Fac Gar Fac Gar Machines Disabled 14 | . . . . . 6 1 . 2 . . 1 . 4 . . Max in Single Turn 1 | . . . . . 1 1 . 1 . . 1 . 1 . . Garrison Access 2 | . . . . . . . . . 2 . . . . . . Garrison Relay 8 | . . . . . . 1 . 2 . . 1 . 4 . . Machines Repaired . | . . . . . . . . . . . . . . . . Machines Dismantled . | . . . . . . . . . . . . . . . . Machines Sabotaged . | . . . . . . . . . . . . . . . . Overloaded Fab Kills . | . . . . . . . . . . . . . . . . Hacking | -11 -10 -10 -10 -9 -8 -8 -7 -7 -7 -6 -6 -5 -5 -4 -4 --------- Run | Yrd Mat Min Exi Min Mat Gar Fac Gar Fac Fac Gar Fac Gar Fac Gar Machines Accessed 51 | . 7 . 2 1 8 1 6 1 8 4 2 2 3 6 . Terminals 35 | . 6 . . . 6 1 4 1 6 2 2 . 3 4 . Fabricators . | . . . . . . . . . . . . . . . . Repair Stations 1 | . 1 . . . . . . . . . . . . . . Recycling Units 3 | . . . . . . . . . . 1 . 1 . 1 . Scanalyzers 2 | . . . . . 1 . 1 . . . . . . . . Garrison Access 7 | . . . . . 1 . 1 . 2 1 . 1 . 1 . Total Hacks 104 | . 17 . 2 1 23 1 13 2 18 8 4 3 4 8 . Successful 53 | . 7 . 2 1 12 1 6 . 6 6 2 3 2 5 . Failed 51 | . 10 . . . 11 . 7 2 12 2 2 . 2 3 . Catastrophic 6 | . 1 . . . 2 . . . 1 . . . . 2 . Database Lockouts . | . . . . . . . . . . . . . . . . Manual 57 | . 12 . 1 . 14 . 7 . 15 4 . . . 4 . Terminals 80 | . 14 . . . 20 1 9 2 16 4 4 . 4 6 . Fabricators . | . . . . . . . . . . . . . . . . Repair Stations 3 | . 3 . . . . . . . . . . . . . . Recycling Units 6 | . . . . . . . . . . 3 . 2 . 1 . Scanalyzers 5 | . . . . . 2 . 3 . . . . . . . . Garrison Access 7 | . . . . . 1 . 1 . 2 1 . 1 . 1 . Terminal Hacks 26 | . 5 . 2 1 7 1 2 . 2 . 2 . 2 2 . Record 4 | . . . 1 . . . 1 . . . . . . 2 . Robot Analysis 5 | . 3 . . . 2 . . . . . . . . . . Prototype ID Bank 1 | . 1 . . . . . . . . . . . . . . Open Door 1 | . . . . 1 . . . . . . . . . . . Level Access Points 1 | . . . . . . . . . 1 . . . . . . Emergency Access Points 3 | . . . . . . 1 . . . . 1 . 1 . . Alert Level 1 | . . . . . 1 . . . . . . . . . . Unreport Threat 4 | . . . . . 2 . 1 . 1 . . . . . . Locate Traps 1 | . . . . . 1 . . . . . . . . . . Dispatch Records 1 | . 1 . . . . . . . . . . . . . . Hauler Manifests 1 | . . . . . 1 . . . . . . . . . . Patrol Navigation 1 | . . . . . . . . . . . 1 . . . . Security Stations 1 | . . . . . . . . . . . . . 1 . . Proto ID Catalog 1 | . . . 1 . . . . . . . . . . . . Fabricator Hacks . | . . . . . . . . . . . . . . . . Repair Station Hacks 1 | . 1 . . . . . . . . . . . . . . Scan Component 1 | . 1 . . . . . . . . . . . . . . Recycling Unit Hacks 6 | . . . . . . . . . . 3 . 2 . 1 . Report Inventory 3 | . . . . . . . . . . 1 . 1 . 1 . Retrieve Matter 1 | . . . . . . . . . . 1 . . . . . Retrieve Components 2 | . . . . . . . . . . 1 . 1 . . . Scanalyzer 4 | . . . . . 2 . 2 . . . . . . . . Insert Component 2 | . . . . . 1 . 1 . . . . . . . . Analyze 2 | . . . . . 1 . 1 . . . . . . . . Garrison Access Hacks 7 | . . . . . 1 . 1 . 2 1 . 1 . 1 . Unlock Access 5 | . . . . . 1 . 1 . . 1 . 1 . 1 . Seal Access 2 | . . . . . . . . . 2 . . . . . . Unauthorized Hacks 9 | . 1 . . . 2 . 1 . 2 2 . . . 1 . Terminals 9 | . 1 . . . 2 . 1 . 2 2 . . . 1 . Botnet 9 | . 1 . . . 2 . 1 . 2 2 . . . 1 . Fabricators . | . . . . . . . . . . . . . . . . Repair Stations . | . . . . . . . . . . . . . . . . Recycling Units . | . . . . . . . . . . . . . . . . Scanalyzers . | . . . . . . . . . . . . . . . . Garrison Access . | . . . . . . . . . . . . . . . . Data Cores Recovered 1 | . . . . . 1 . . . . . . . . . . Used . | . . . . . . . . . . . . . . . . Hacking Detections 40 | . 7 . . . 7 1 6 1 6 3 2 . 2 5 . Full Trace Events 2 | . 1 . . . . . . . . . . . 1 . . Feedback Events . | . . . . . . . . . . . . . . . . Feedback Blocked . | . . . . . . . . . . . . . . . . Robot Schematics Acquired . | . . . . . . . . . . . . . . . . Robots Built . | . . . . . . . . . . . . . . . . Authchips . | . . . . . . . . . . . . . . . . Time . | . . . . . . . . . . . . . . . . Total Robot Build Rating . | . . . . . . . . . . . . . . . . Part Schematics Acquired 2 | . . . . . 1 . 1 . . . . . . . . Parts Built . | . . . . . . . . . . . . . . . . Authchips . | . . . . . . . . . . . . . . . . Time . | . . . . . . . . . . . . . . . . Total Part Build Rating . | . . . . . . . . . . . . . . . . Parts Repaired . | . . . . . . . . . . . . . . . . Time . | . . . . . . . . . . . . . . . . Parts Recycled . | . . . . . . . . . . . . . . . . Recycled Matter . | . . . . . . . . . . . . . . . . Retrieved Matter . | . . . . . . . . . . . . . . . . Retrieved Components 5 | . . . . . . . . . . 2 . 3 . . . Parts Scanalyzed 2 | . . . . . 1 . 1 . . . . . . . . Part Schematics Acquired 2 | . . . . . 1 . 1 . . . . . . . . Parts Damaged . | . . . . . . . . . . . . . . . . Bothacking | -11 -10 -10 -10 -9 -8 -8 -7 -7 -7 -6 -6 -5 -5 -4 -4 ------------ Run | Yrd Mat Min Exi Min Mat Gar Fac Gar Fac Fac Gar Fac Gar Fac Gar Used RIF Installer 4 | . . . . . . 1 . 1 . . 1 . 1 . . Watcher Feeds 1 | . . . . . . . . 1 . . . . . . . Structural Interface 1 | . . . . . . . . . . . . . 1 . . Program Shield 1 | . . . . . . . . . . . 1 . . . . Robots Hacked 20 | . . . . . . . . 1 . . . 3 8 4 4 Non-combat 2 | . . . . . . . . . . . . . . 2 . Combat 18 | . . . . . . . . 1 . . . 3 8 2 4 Robot Hacks Applied 22 | . . . . . . . . 2 . . . 3 8 5 4 parse_system 2 | . . . . . . . . 1 . . . . . . 1 no_distress 1 | . . . . . . . . . . . . . . 1 . go_dormant 1 | . . . . . . . . . . . . . . . 1 formatsys_low 2 | . . . . . . . . . . . . . . 2 . formatsys_high 16 | . . . . . . . . 1 . . . 3 8 2 2 Relay Couplers Released 30 | . . . . . . 5 . 6 2 . 3 . 14 . . Machine Destruction 30 | . . . . . . 5 . 6 2 . 3 . 14 . . Attached 17 | . . . . . . . . 2 . 1 . 1 11 1 1 Fabnet Peak Effective % . | . . . . . . . . . . . . . . . . Robots Rewired 5 | . . . . . . 3 . . . . . . 2 . . Allies Hacked . | . . . . . . . . . . . . . . . . Hacks Repelled . | . . . . . . . . . . . . . . . . Allies | -11 -10 -10 -10 -9 -8 -8 -7 -7 -7 -6 -6 -5 -5 -4 -4 -------- Run | Yrd Mat Min Exi Min Mat Gar Fac Gar Fac Fac Gar Fac Gar Fac Gar Total Allies 31 | . . 3 . . . 3 . 1 . 2 3 3 10 4 2 Largest Group 4 | . . 3 3 3 2 3 2 1 . 2 1 3 3 4 1 Highest-Rated Group 144 | . . 40 40 40 32 48 32 16 . 76 46 105 131 144 58 Highest-Rated Ally 58 | . . 16 16 16 16 16 16 16 . 47 46 47 51 56 58 Total Orders 2 | . . . . . . . . . . . . . . 2 . STAY 2 | . . . . . . . . . . . . . . 2 . Ally Attacks 156 | . . . . 30 26 . 11 . . 4 4 8 63 8 2 Total Damage 3864 | . . . . 325 403 . 77 . . 96 25 181 2251 409 97 Kills 29 | . . . . 6 4 . 1 . . 1 . 2 14 1 . Allies Corrupted 1 | . . . . . . . . . . . . . . . 1 Allies Melted 1 | . . . . . . . . . . . . . 1 . . Field Lobotomies 5 | . . . . . . . . . . 2 3 . . . . Intel | -11 -10 -10 -10 -9 -8 -8 -7 -7 -7 -6 -6 -5 -5 -4 -4 ------- Run | Yrd Mat Min Exi Min Mat Gar Fac Gar Fac Fac Gar Fac Gar Fac Gar Active Infowar (turns) 5878 | 34 249 . . . 98 . 1159 1225 1800 1313 . . . . . Structural 5595 | . . . . . 98 . 1159 1225 1800 1313 . . . . . Seismic 283 | 34 249 . . . . . . . . . . . . . . Jamming 17 | . . . . . . . . . 16 1 . . . . . Robot Analysis Total 5 | . 3 . . . 2 . . . . . . . . . . Derelict Logs Recovered 2 | . . . . 2 . . . . . . . . . . . Drone Launches . | . . . . . . . . . . . . . . . . Drone Recoveries . | . . . . . . . . . . . . . . . . Exploration | -11 -10 -10 -10 -9 -8 -8 -7 -7 -7 -6 -6 -5 -5 -4 -4 ------------- Run | Yrd Mat Min Exi Min Mat Gar Fac Gar Fac Fac Gar Fac Gar Fac Gar Turns Passed 19506 | 139 2138 549 504 771 1546 1243 1196 1225 2374 2707 1139 565 2362 891 157 Spaces Moved 11302 | 69 905 229 210 400 955 650 803 640 1326 2209 648 300 1324 599 35 Core 13 | 5 . . . . . . . . . . . . . . 8 Treads 1845 | 64 905 229 210 101 4 140 92 100 . . . . . . . Legs 2022 | . . . . . . . . . 872 . . . 524 599 27 Wheels 4530 | . . . . 297 951 510 711 540 454 1067 . . . . . Hover 2890 | . . . . . . . . . . 1142 648 300 800 . . Flight 2 | . . . . 2 . . . . . . . . . . . Fastest Speed 50 | 50 160 240 240 110 101 108 125 125 105 101 101 108 111 125 50 Average Speed 139 | 152 203 240 240 176 108 145 138 163 131 103 132 114 138 128 278 Slowest Speed 1020 | 160 320 240 240 1020 320 400 400 400 270 120 161 118 400 196 850 Overloaded Moves . | . . . . . . . . . . . . . . . . Propulsion Burnouts . | . . . . . . . . . . . . . . . . Robots Hopped . | . . . . . . . . . . . . . . . . Potential Cave-ins . | . . . . . . . . . . . . . . . . Cave-ins Triggered . | . . . . . . . . . . . . . . . . Exploration Rate (%) 41 | 5 98 50 59 57 49 45 24 49 29 31 40 9 90 19 14 Regions Visited 15 Branch Regions 3 Pre-discovered Areas 2 | . . . 1 1 . . . . . . . . . . . Known Exits Taken 6 | . . . . . 1 . 1 . 1 1 . 1 . 1 . Unknown Exits Taken 5 | 1 1 1 1 1 . . . . . . . . . . . Scrap Searched 1 | . . . . 1 . . . . . . . . . . . Spaces Dug 22 | . . . . . 5 . 2 3 . 9 2 1 . . . Terrain Destroyed 363 | . 7 . . 104 32 1 2 52 26 84 35 16 2 1 1 Melee 6 | . . . . . . . 2 . . 3 . 1 . . . Projectile 44 | . . . . . 22 1 . 3 1 12 2 1 1 1 . AOE 312 | . 7 . . 104 10 . . 49 25 69 33 14 . . 1 Terrain Rammed . | . . . . . . . . . . . . . . . . Walls Destroyed . | . . . . . . . . . . . . . . . . Machines Disabled . | . . . . . . . . . . . . . . . . Actions | -11 -10 -10 -10 -9 -8 -8 -7 -7 -7 -6 -6 -5 -5 -4 -4 --------- Run | Yrd Mat Min Exi Min Mat Gar Fac Gar Fac Fac Gar Fac Gar Fac Gar Total 13786 | 89 1039 230 211 443 1282 820 880 734 1790 2513 815 494 1670 705 71 Wait 925 | . 9 . . . 129 25 35 33 283 142 21 148 21 71 8 Move 11289 | 68 904 228 209 399 954 649 802 639 1325 2208 647 300 1323 599 35 Hop . | . . . . . . . . . . . . . . . . Pick Up 192 | 7 22 1 1 8 19 9 10 2 25 25 10 9 36 8 . Fast Attach 79 | 7 2 . . 3 9 3 5 2 10 9 2 . 20 1 6 Attach 70 | . 2 . . 1 4 4 2 4 10 12 5 7 15 3 1 Detach 8 | . . . . . 2 . 2 . 2 1 . . . 1 . Swap 112 | . 7 . . 6 18 11 1 7 14 14 5 4 19 4 2 Drop 166 | . 8 1 1 9 30 11 14 . 27 21 5 3 32 4 . Fire 661 | 7 82 . . 15 109 60 . 38 80 62 50 21 110 13 14 Melee 80 | . . . . 2 8 7 9 5 14 18 12 1 . . 4 Ram 3 | . . . . . . . . . . 1 . 1 . . 1 Kick . | . . . . . . . . . . . . . . . . Crush 3 | . 3 . . . . . . . . . . . . . . Escape Stasis 139 | . . . . . . 9 . 4 . . 58 . 68 . . Rewire 59 | . . . . . . 32 . . . . . . 26 1 . Trap . | . . . . . . . . . . . . . . . . Miscellaneous . | . . . . . . . . . . . . . . . . Route ------- -11/Scrapyard -10/Materials (discovered 5 exits: [*Mat x3] / [*Min] / [*Sub]) -10/Mines (discovered 2 exits: *Exi / [*Sub]) -10/Exiles (discovered 2 exits: *Min x2) -9/Mines -8/Materials (discovered 2 exits: *Fac / Gar) -8/Garrison (discovered 3 exits: *Fac x2 / [*Mat]) -7/Factory -7/Garrison -7/Factory (discovered 4 exits: *Fac x4) -6/Factory -6/Garrison -5/Factory -5/Garrison (discovered 4 exits: *Fac x3 / [*Fac]) -4/Factory -4/Garrison History --------- Turn | Location | Event 3 | -11/Scrapyard | Discovered new exit (range 16) 140 | -11/Scrapyard | Entered Materials 312 | -10/Materials | Build established: Mutant 529 | -10/Materials | Core integrity fell below 50% 694 | -10/Materials | Discovered new exit (range 13) 895 | -10/Materials | Discovered new exit (range 9) 1105 | -10/Materials | Discovered new exit (range 11) 1403 | -10/Materials | Discovered new exit (range 14) 1747 | -10/Materials | Discovered new exit (range 10) 2278 | -10/Materials | Entered Mines 2441 | -10/Mines | Received a Rocket Launcher from a helpful Derelict 2510 | -10/Mines | Discovered new exit (range 4) 2546 | -10/Mines | Assisted by bots powering up and referring to "LRC-V3" 2815 | -10/Mines | Deemed a non-threat by the Exiles lab entrance 2818 | -10/Mines | Discovered new exit (range 5) 2827 | -10/Mines | Entered Exiles 2827 | -10/Exiles | Accompanied by 3 allies 2859 | -10/Exiles | Discovered new exit (range 15) 2887 | -10/Exiles | Met 8R-AWN 2931 | -10/Exiles | Met EX-HEX 2998 | -10/Exiles | Met EX-BIN 3024 | -10/Exiles | Aligned with FarCom system 3027 | -10/Exiles | Given EX-Vault access code 3082 | -10/Exiles | Opened EX-Vault 3097 | -10/Exiles | Found Field Lobotomy Kit 3146 | -10/Exiles | Warned to stay clear of 0b10 Research branches 3180 | -10/Exiles | Exiles lab attacked by MAIN.C 3237 | -10/Exiles | Learned location of Zion (-7) 3307 | -10/Exiles | Discovered new exit (range 12) 3331 | -10/Exiles | Left Exiles lab with Field Lobotomy Kit 3331 | -10/Exiles | Entered Mines 3331 | -9/Mines | Accompanied by 3 allies 3437 | -9/Mines | Learned Materials terminal intel 3500 | -9/Mines | Found a damaged Exp. Sensor Array with a note attached 3507 | -9/Mines | Found Prototype Device 3751 | -9/Mines | Met a Derelict shopkeep closing up shop 3856 | -9/Mines | Assembled infested the area 4089 | -9/Mines | Discovered new exit (range 8) 4102 | -9/Mines | Entered Materials 4102 | -8/Materials | Accompanied by 2 allies 4102 | -8/Materials | Evolved 4 slots: Propulsion x2, Utility x2 4103 | -8/Materials | Loaded intel: 12 terminal locations 4508 | -8/Materials | Build established: Scavenger-Mutant 4672 | -8/Materials | Garrison activated, responded to threat 4805 | -8/Materials | Identified exit to Garrison 4894 | -8/Materials | Discovered new exit (range 16) 4990 | -8/Materials | Garrison activated, responded to threat 5107 | -8/Materials | Garrison activated, responded to threat 5411 | -8/Materials | Build established: Mutant 5578 | -8/Materials | Garrison activated, responded to threat 5648 | -8/Materials | Entered Garrison 5696 | -8/Garrison | Triggered checkpoint 5812 | -8/Garrison | Garrison Relay disabled 5864 | -8/Garrison | Triggered checkpoint 6143 | -8/Garrison | Installed Relay Interface Framework 6252 | -8/Garrison | Triggered checkpoint 6392 | -8/Garrison | Discovered new exit (range 14) 6546 | -8/Garrison | Triggered checkpoint 6607 | -8/Garrison | Discovered new exit (range 10) 6676 | -8/Garrison | Triggered checkpoint 6682 | -8/Garrison | Build established: Scavenger-Mutant 6696 | -8/Garrison | Discovered new exit (range 6) 6891 | -8/Garrison | Entered Factory 6891 | -7/Factory | Accompanied by 2 allies 6891 | -7/Factory | Evolved 2 slots: Utility x2 7063 | -7/Factory | Build established: Mutant 8004 | -7/Factory | Identified exit to Garrison 8023 | -7/Factory | Found Prototype Launcher 8023 | -7/Factory | Identified Rocket Array 8087 | -7/Factory | Entered Garrison 8107 | -7/Garrison | Triggered checkpoint 8144 | -7/Garrison | Spotted B-75 Beast 8144 | -7/Garrison | Spotted B-75 Beast 8357 | -7/Garrison | Triggered checkpoint 8795 | -7/Garrison | Triggered checkpoint 9036 | -7/Garrison | Discovered new exit (range 10) 9079 | -7/Garrison | Triggered checkpoint 9191 | -7/Garrison | Expanded RIF knowledge: Watcher Feeds 9245 | -7/Garrison | Garrison Relay disabled 9312 | -7/Garrison | Entered Factory 9543 | -7/Factory | Build established: Bothacker-Mutant 11008 | -7/Factory | Garrison activated, responded to threat 11060 | -7/Factory | Lost 4 parts (2n2w) 11171 | -7/Factory | Core integrity fell below 50% 11654 | -7/Factory | Identified exit to Factory 11686 | -7/Factory | Entered another Factory area 11686 | -6/Factory | Evolved 2 slots: Utility x2 13048 | -6/Factory | Assimilated G-67 Veteran with FLK Orb 13051 | -6/Factory | Assimilated G-50 Soldier with FLK Orb 13073 | -6/Factory | Lost 10 parts (1p4n3u2w) 13415 | -6/Factory | Core integrity fell below 50% 13644 | -6/Factory | System corruption reached 10% 14155 | -6/Factory | Build established: Hacker-Mutant 14388 | -6/Factory | Identified exit to Garrison 14393 | -6/Factory | Entered Garrison 14447 | -6/Garrison | Triggered checkpoint 14449 | -6/Garrison | Assimilated X-72 Disruptor with FLK Orb 14456 | -6/Garrison | Assimilated C-17 Slicer with FLK Orb 14459 | -6/Garrison | Assimilated C-17 Slicer with FLK Orb 14499 | -6/Garrison | Lost 3 allies 14565 | -6/Garrison | Triggered checkpoint 14798 | -6/Garrison | Triggered checkpoint 14803 | -6/Garrison | Triggered checkpoint 14834 | -6/Garrison | Destroyed 12 combat bots 14980 | -6/Garrison | Build established: Bothacker-Mutant 15257 | -6/Garrison | Discovered new exit (range 11) 15307 | -6/Garrison | Triggered checkpoint 15347 | -6/Garrison | Garrison Relay disabled 15379 | -6/Garrison | Expanded RIF knowledge: Program Shield 15532 | -6/Garrison | Entered Factory 15532 | -5/Factory | Evolved 2 slots: Power x1, Propulsion x1 15830 | -5/Factory | Lost 6 parts (1p1n2u2w) 16097 | -5/Factory | Identified exit to Garrison 16097 | -5/Factory | Entered Garrison 16199 | -5/Garrison | Triggered checkpoint 16238 | -5/Garrison | Learned Factory security intel 16336 | -5/Garrison | Lost 5 parts (1p1n2u1w) 16459 | -5/Garrison | Triggered checkpoint 16662 | -5/Garrison | Discovered new exit (range 13) 16715 | -5/Garrison | Triggered checkpoint 16782 | -5/Garrison | Expanded RIF knowledge: Structural Interface 16810 | -5/Garrison | Garrison Relay disabled 16897 | -5/Garrison | Triggered checkpoint 16966 | -5/Garrison | Discovered new exit (range 32) 17007 | -5/Garrison | Triggered checkpoint 17119 | -5/Garrison | Build established: Botlord-Mutant 17119 | -5/Garrison | Discovered new exit (range 14) 17137 | -5/Garrison | Triggered checkpoint 17169 | -5/Garrison | Discovered new exit (range 5) 17192 | -5/Garrison | Lost 3 parts (1p1n1w) 17248 | -5/Garrison | Triggered checkpoint 17297 | -5/Garrison | Garrison Relay disabled 17631 | -5/Garrison | Triggered checkpoint 17678 | -5/Garrison | Lost 5 allies 17700 | -5/Garrison | Garrison Relay disabled 17733 | -5/Garrison | Spotted B-75 Beast 17852 | -5/Garrison | Destroyed B-75 Beast 17870 | -5/Garrison | Lost 4 parts (1p2n1w) 18037 | -5/Garrison | Found Relay Coupler [Proto] 18040 | -5/Garrison | Found Relay Coupler [Proto] 18045 | -5/Garrison | Found Relay Coupler [Proto] 18050 | -5/Garrison | Found Relay Coupler [Proto] 18237 | -5/Garrison | Garrison Relay disabled 18459 | -5/Garrison | Entered Factory 18459 | -4/Factory | Evolved 2 slots: Utility x1, Weapon x1 18763 | -4/Factory | Build established: Botlord-Skirmisher 19112 | -4/Factory | Garrison activated, responded to threat 19140 | -4/Factory | Found Prototype Launcher 19156 | -4/Factory | Lost 4 allies 19350 | -4/Factory | Identified exit to Garrison 19350 | -4/Factory | Entered Garrison 19407 | -4/Garrison | Identified Tesla Bomb Launcher 19420 | -4/Garrison | System corruption reached 10% 19456 | -4/Garrison | System corruption reached 30% 19468 | -4/Garrison | Core integrity fell below 50% 19493 | -4/Garrison | Core integrity fell below 20% 19507 | -4/Garrison | Destroyed by P-70 Sage with High-powered Shock Rifle Last Messages --------------- effect. 19473_ Knocked back. 19480_ System corrupted: Component data lost. 19481_ Acquired Imp. Concussive RPG. 19482_ Imp. Concussive RPG destroyed. 19484_ Hacking Suite destroyed. 19487_ P-70 Sage misfires. 19490_ Hcp. Storage Unit destroyed. 19490_ Relay Coupler [Demolisher] crushed and broken. 19490_ Hacking Suite crushed and broken. 19490_ Mic. Fission Core crushed and broken. 19490_ Imp. Heat Sink crushed and broken. 19495_ System corrupted: Energy discharge (-38). 19496_ Relay Coupler [Grunt] destroyed. 19496_ Acquired Carbide Saw. 19503_ Carbide Saw destroyed. 19506_ Slammed into G-67 Veteran. 19506_ Destabilizing: System corrupted (+1). [Achievement: 20k Club] Map ----- +----------------------------------------------------+ | ???????????????????????????????????? | | ???????????????????????????????????? | | ???????????????????????????????????? | | ???????????????????????????????????? | | ???????????????????????????????????? | | ???????????????????????????????????? | | ???????????????????????????????????? | | ???????????????????????????????????? | | ???????????????????????????????????? | | ???????????????????????????????????? | | ????????????????gg?g???????????????? | | ???????????????????????????????????? | | ???????????????????????????????????? | | ???????????????????????????????????? | | ???????????????????????????????????? | | ???????????????????????????????????? | | ???????????????????????????????????? | | ?????????????????####??????????????? | | ?????????????????"""#??????????????? | | ????????????????? "##?????????????? | | ????????????????= ??????????????? | | ???????????????? ???????????????? | | ????????????????%]#????? #????????? | | ?????????####### ##???? #????????? | | ????????##!#=g] ]#%##? #????????? | | ????????#!g@p!=!] ] #? +????????? | | ????????##!#*=]]==[# ##? #????????? | | ?????????###[! !#???# #????????? | | ???????????####=# [#???# #????????? | | ???????????????##* ##### ########## | | ???????????????# * # | | ???????????????# * # | | ???????????????# # | | ???????????????# # | | ???????????????# # | | ???????????????# # | | ???????????????# # | | ???????????????# # | | ???????????????# | | ??????????#" | | ??????????###### | | ???????????????# # | | ???????????????# # | | ???????????????# | | ???????????????# # | | ???????????????# # | | ???????????????# # | | ???????????????# # | | ???????????????# # | | ???????????????###+##### ########## | +----------------------------------------------------+ Best States ------------- Heat Dissipation 97 Energy Generation 36 Energy Capacity 540 Matter Stores 300 Matter Capacity 300 Sight Range 16 Terrain Scan Density 10 Jamming Range 12 Armor Coverage 600 Propulsion Shielding 33 Utility Shielding 66 Weapon Shielding 33 Phase Shifting 5 Evasion (%) 55 Target Analysis 5 Recoil Reduction 2 Offensive Hacking 20 Defensive Hacking 10 Relay Coupler Types 6 Relay Coupler Value 159 Item Schematics ----------------- Imp. Ion Engine | -8/Materials | Scanalyzed Rocket Launcher | -7/Factory | Scanalyzed Robot Schematics ------------------ None Fabricated ------------ Nothing Repaired ---------- Nothing Alien Tech Used ----------------- None Achievements -------------- 20k Club Challenges ------------ None Game ------ Seed ShieldPrecisionBeacon Manual? 0 Play Time 03:01:54 Cumulative 31.6 hours Start 2025.06.18 @ 16:18:31 End 2025.06.18 @ 21:25:06 Sessions 3 Manual Loads 0 Difficulty Rogue Special Mode None Game No. 31 Rogue 31 Adventurer 0 Explorer 0 Win Type - Total 0 Types 0/0/0/0/0/0/0/0/0/0 Lore% 24 Gallery% 27 Achievement% 29 Wizard Run 0 Options --------- Layout 1 ASCII 0 Keyboard 1 Movement Arrows Keybinds 0 Fullscreen 1 Font 24/Smallcaps Map View 50x40 Zoom Use 0% Tactical HUD 1 Map Filters NONE Filters NONE Steam 1 RUN: 11deffb8-014d-40ac-a7e3-d5d162471be5